bitfinex-derivatives/quotes_SOLF0:USTF0_20240918
["timestamp","ask_amount","ask_price","bid_price","bid_amount"]
[1726667614021,22.69311955,128.42,128.41,39.60364924]
[1726667614321,18.79991955,128.42,128.41,39.60364924]
[1726667614823,29.88,128.42,128.39,5.65334453]
[1726667615127,14.94,128.4,128.38,18.04179945]
[1726667616930,14.94,128.41,128.38,18.04179945]
[1726667617522,14.94,128.41,128.39,3.8941]
[1726667617927,14.94,128.41,128.38,18.04179945]
[1726667618127,14.94,128.41,128.38,21.93609945]
[1726667618335,14.94,128.41,128.38,18.04179945]
[1726667619335,14.94,128.41,128.4,3.8938]
[1726667619832,18.74603414,128.42,128.4,3.8938]
[1726667620131,18.74603414,128.42,128.39,3.894]
[1726667620327,18.74603414,128.42,128.38,18.04179945]
[1726667620328,14.94,128.41,128.38,18.04179945]
[1726667620727,14.94,128.39,128.38,18.04179945]
[1726667621422,18.92057804,128.39,128.38,18.04179945]
[1726667621730,18.78648885,128.41,128.38,18.04179945]
[1726667622128,14.94,128.41,128.38,18.04179945]
[1726667622427,14.94,128.41,128.39,3.8941]
[1726667622626,18.85158447,128.41,128.38,18.04179945]
[1726667622833,18.85158447,128.41,128.38,21.93609945]
[1726667623226,14.94,128.41,128.38,21.93609945]
[1726667623536,14.94,128.41,128.39,3.8941]
[1726667625227,14.94,128.41,128.4,3.8938]
[1726667625522,14.94,128.43,128.4,3.8938]
[1726667625931,18.89696316,128.43,128.4,3.8938]
[1726667626133,14.94,128.43,128.41,3.8935]
[1726667626634,14.94,128.43,128.4,3.8937]
[1726667627034,14.94,128.43,128.38,20.86059945]
[1726667627333,14.94,128.45,128.38,20.86059945]
[1726667627525,18.92853157,128.45,128.38,20.86059945]
[1726667627726,3.98853157,128.45,128.38,20.86059945]
[1726667627933,170.78,128.48,128.39,14.94]
[1726667628132,174.6716,128.48,128.44,3.8926]
[1726667628330,170.78,128.48,128.39,14.94]
[1726667628835,14.94,128.46,128.39,14.94]
[1726667629141,14.94,128.46,128.38,20.86059945]
[1726667629336,14.94,128.44,128.41,3.8933]
[1726667629531,14.94,128.44,128.38,20.86059945]
[1726667629728,14.94,128.44,128.41,3.8933]
[1726667630235,14.94,128.44,128.38,20.86059945]
[1726667630434,14.94,128.44,128.42,3.8932]
[1726667630831,22.74386435,128.45,128.42,3.8932]
[1726667631334,14.94,128.45,128.42,3.8932]
[1726667632333,18.8410989,128.45,128.42,3.8932]
[1726667632937,18.8410989,128.45,128.43,3.8929]
[1726667633828,14.94,128.45,128.38,20.86059945]
[1726667634437,14.94,128.45,128.43,3.8928]
[1726667635526,14.94,128.45,128.38,20.86059945]
[1726667635732,18.8319,128.47,128.38,35.80059945]
[1726667636331,3.892,128.46,128.38,35.80059945]
[1726667636938,3.892,128.46,128.43,3.8928]
[1726667637246,18.8323,128.45,128.38,20.86059945]
[1726667637737,14.94,128.45,128.43,3.8929]
[1726667638442,18.832,128.47,128.38,35.80059945]
[1726667638641,22.68594747,128.47,128.38,35.80059945]
[1726667639530,22.68594747,128.47,128.44,3.8924]
[1726667639733,3.8921,128.46,128.38,35.80059945]
[1726667639936,18.79394747,128.47,128.38,35.80059945]
[1726667640138,3.8925,128.45,128.38,35.80059945]
[1726667641245,3.8925,128.45,128.43,3.8929]
[1726667641945,3.85394747,128.47,128.38,35.80059945]
[1726667641946,3.85394747,128.47,128.4,14.94]
[1726667642245,14.94,128.48,128.4,14.94]
[1726667642445,3.82685264,128.47,128.4,14.94]
[1726667642848,14.94,128.5,128.4,14.94]
[1726667643147,14.94,128.5,128.42,14.94]
[1726667643339,14.94,128.5,128.43,4.375]
[1726667643541,3.8913,128.49,128.46,3.8918]
[1726667644150,18.8309,128.5,128.47,3.8917]
[1726667644344,14.94,128.5,128.43,4.375]
[1726667644643,14.94,128.5,128.47,3.8914]
[1726667644644,18.831,128.5,128.47,3.8914]
[1726667645044,14.94,128.5,128.43,4.375]
[1726667645439,3.891,128.5,128.47,3.8915]
[1726667645750,14.94,128.52,128.44,14.94]
[1726667646942,18.8304,128.52,128.49,3.8911]
[1726667647440,18.8304,128.52,128.48,3.8912]
[1726667647938,3.89,128.53,128.44,14.94]
[1726667648137,640.70453095,128.6,128.47,14.94]
[1726667648138,14.94,128.54,128.47,14.94]
[1726667648342,14.94,128.54,128.48,4.3431]
[1726667648545,3.89,128.53,128.48,4.3431]
[1726667648743,14.94,128.51,128.48,4.3431]
[1726667648939,22.65012017,128.51,128.48,2.9155]
[1726667649643,18.75952017,128.51,128.48,6.8067]
[1726667649838,3.81952017,128.51,128.48,2.9155]
[1726667650046,14.94,128.52,128.49,3.891]
[1726667650243,3.86197226,128.53,128.5,14.94]
[1726667650445,14.94,128.6,128.49,1.4052]
[1726667650642,147.86453095,128.64,128.5,14.94]
[1726667650844,14.94,128.59,128.5,14.94]
[1726667651044,14.94,128.59,128.53,3.8898]
[1726667651045,3.8885,128.58,128.53,3.8898]
[1726667651245,14.94,128.59,128.54,1.4203]
[1726667651446,151.76934478,128.64,128.54,1.4203]
[1726667651647,14.94,128.58,128.54,1.4203]
[1726667651848,3.91688736,128.57,128.54,1.4203]
[1726667652343,14.94,128.56,128.54,1.4203]
[1726667652542,18.92582333,128.56,128.49,1.4052]
[1726667652742,18.92582333,128.56,128.5,1.4203]
[1726667652946,18.92582333,128.56,128.51,3.8903]
[1726667654748,18.92582333,128.56,128.52,3.8901]
[1726667655954,3.98582333,128.56,128.5,1.4203]
[1726667656146,14.94,128.58,128.5,16.3603]
[1726667657169,18.8284,128.58,128.53,3.8897]
[1726667657354,14.94,128.6,128.52,14.94]
[1726667657754,1.4663,128.63,128.53,1.4233]
[1726667657957,3.90481383,128.64,128.57,14.94]
[1726667658157,170.74,128.66,128.58,1.4467]
[1726667658359,14.94,128.65,128.6,3.8875]
[1726667658663,14.94,128.62,128.55,14.94]
[1726667658962,14.94,128.62,128.55,16.3867]
[1726667659354,3.8875,128.61,128.57,3.8884]
[1726667659950,18.8273,128.62,128.57,3.8884]
[1726667661051,14.94,128.62,128.55,1.4467]
[1726667662462,3.8875,128.61,128.55,1.4467]
[1726667663056,14.94,128.59,128.53,1.4233]
[1726667663252,14.94,128.57,128.49,3.0]
[1726667663452,18.8289,128.57,128.53,3.8898]
[1726667664262,14.94,128.57,128.53,3.8898]
[1726667664561,14.94,128.57,128.52,3.8902]
[1726667664962,18.8289,128.57,128.52,3.8902]
[1726667665362,14.94,128.57,128.51,3.8904]
[1726667665559,14.94,128.55,128.49,3.0]
[1726667665954,18.8295,128.55,128.51,3.8905]
[1726667666460,3.98083094,128.55,128.49,17.94]
[1726667666659,1.5034,128.58,128.5,14.94]
[1726667667263,5.40245705,128.58,128.5,14.94]
[1726667667461,9.29095705,128.58,128.53,3.8897]
[1726667667662,9.29095705,128.58,128.5,14.94]
[1726667667663,5.40245705,128.58,128.5,14.94]
[1726667667859,5.40245705,128.58,128.49,3.0]
[1726667667860,3.89905705,128.58,128.52,14.94]
[1726667668066,14.94,128.6,128.56,3.8889]
[1726667668462,14.94,128.6,128.57,3.8885]
[1726667668463,3.85388671,128.59,128.57,3.8885]
[1726667668660,14.94,128.62,128.53,16.3392]
[1726667668860,14.94,128.62,128.54,3.0337]
[1726667669168,18.827,128.63,128.58,3.8882]
[1726667671061,18.827,128.63,128.55,14.94]
[1726667671062,14.94,128.63,128.55,14.94]
[1726667671567,14.94,128.63,128.6,3.8875]
[1726667673270,14.94,128.63,128.57,3.0]
[1726667674171,14.94,128.63,128.6,3.8876]
[1726667674573,14.94,128.63,128.57,3.0]
[1726667674772,14.94,128.63,128.6,3.8876]
[1726667674964,14.94,128.63,128.57,3.0]
[1726667675273,16.4434,128.65,128.57,17.94]
[1726667675768,16.4434,128.65,128.58,1.4684]
[1726667676274,14.94,128.65,128.58,1.4684]
[1726667676475,14.94,128.6,128.57,3.0]
[1726667676973,14.94,128.62,128.57,3.0]
[1726667677567,14.94,128.62,128.57,6.8886]
[1726667678769,14.94,128.62,128.58,3.8882]
[1726667679678,14.94,128.63,128.59,3.888]
[1726667679883,3.87782101,128.64,128.57,3.0]
[1726667680083,14.94,128.65,128.58,1.4873]
[1726667680286,14.94,128.65,128.6,3.8878]
[1726667680682,3.87007846,128.64,128.6,3.8878]
[1726667680878,3.87007846,128.64,128.59,3.888]
[1726667681883,7.75667846,128.64,128.59,3.888]
[1726667682079,7.75667846,128.64,128.6,3.8878]
[1726667682080,3.87007846,128.64,128.6,3.8878]
[1726667682582,14.94,128.61,128.57,3.0]
[1726667682784,14.94,128.59,128.54,3.0337]
[1726667683184,14.94,128.59,128.56,3.889]
[1726667683682,14.94,128.61,128.58,3.8883]
[1726667683882,14.94,128.61,128.54,3.0337]
[1726667683883,14.94,128.63,128.54,17.9737]
[1726667684881,3.8872,128.62,128.57,3.8884]
[1726667685076,14.94,128.63,128.54,17.9737]
[1726667685879,18.827,128.63,128.58,3.8882]
[1726667686087,14.94,128.63,128.58,3.8882]
[1726667686486,14.94,128.61,128.57,3.8886]
[1726667687089,18.8275,128.61,128.56,3.8889]
[1726667687785,18.8275,128.61,128.57,3.8887]
[1726667687985,14.94,128.61,128.57,3.8887]
[1726667689390,14.94,128.61,128.58,3.8883]
[1726667689695,14.94,128.61,128.54,17.9737]
[1726667689896,14.94,128.63,128.55,14.94]
[1726667690392,14.94,128.63,128.56,1.4292]
[1726667690592,18.8269,128.63,128.56,1.4292]
[1726667690786,14.94,128.63,128.56,1.4292]
[1726667691498,3.8872,128.62,128.58,3.8884]
[1726667691695,14.94,128.61,128.56,1.4292]
[1726667693190,3.888,128.6,128.57,3.8885]
[1726667695595,3.888,128.6,128.58,3.8884]
[1726667695792,14.94,128.63,128.56,1.4292]
[1726667695993,18.89369649,128.65,128.6,3.8876]
[1726667696696,3.887,128.63,128.6,3.8876]
[1726667697994,3.8867,128.64,128.61,3.8874]
[1726667698196,18.89369649,128.65,128.61,3.8874]
[1726667698597,22.78019649,128.65,128.61,3.8874]
[1726667698991,22.78019649,128.65,128.62,3.8871]
[1726667699197,22.78019649,128.65,128.57,14.94]
[1726667699594,3.8866,128.64,128.57,14.94]
[1726667699990,14.94,128.65,128.57,14.94]
[1726667700188,18.8264,128.65,128.61,3.8873]
[1726667700392,18.8264,128.65,128.57,14.94]
[1726667700594,22.81075675,128.65,128.57,14.94]
[1726667701389,22.81075675,128.65,128.61,3.8872]
[1726667701902,3.8866,128.64,128.61,3.8872]
[1726667702103,3.8866,128.64,128.6,3.8876]
[1726667702594,3.8866,128.64,128.5,3.92295719]
[1726667702595,29.88,128.61,128.52,3.89]
[1726667702799,14.94,128.58,128.51,1.4643]
[1726667703097,14.94,128.57,128.51,1.4643]
[1726667703395,14.94,128.57,128.53,3.8897]
[1726667703599,14.94,128.57,128.51,1.4643]
[1726667703794,14.94,128.55,128.51,1.4643]
[1726667703996,23.94,128.57,128.51,5.3546]
[1726667704398,3.8892,128.56,128.51,5.3546]
[1726667704995,3.8892,128.56,128.52,3.8902]
[1726667705304,3.8888,128.57,128.52,3.8902]
[1726667705995,23.94,128.58,128.51,1.4643]
[1726667706592,3.8891,128.56,128.51,5.3545]
[1726667708198,3.8891,128.56,128.52,3.8902]
[1726667708905,3.8888,128.57,128.53,3.8899]
[1726667709107,3.88006957,128.6,128.51,1.4643]
[1726667709307,55.337635,128.62,128.51,1.4643]
[1726667709515,3.8883,128.59,128.54,3.8894]
[1726667709816,23.94,128.61,128.51,1.4643]
[1726667710006,3.888,128.6,128.55,3.8891]
[1726667710414,23.94,128.61,128.55,3.8891]
[1726667710806,3.8883,128.59,128.55,3.8891]
[1726667711817,23.94,128.59,128.51,1.4643]
[1726667712229,23.94,128.57,128.51,1.4643]
[1726667712812,1.5007,128.58,128.48,1.4713]
[1726667713016,23.94,128.53,128.48,1.4713]
[1726667713510,1.5007,128.58,128.48,1.4713]
[1726667713706,23.94,128.55,128.48,1.4713]
[1726667714418,23.94,128.57,128.48,1.4713]
[1726667714620,3.8895,128.55,128.5,3.8907]
[1726667714917,3.8895,128.55,128.48,1.4713]
[1726667715118,3.8895,128.55,128.51,3.8903]
[1726667715610,27.8292,128.56,128.48,1.4713]
[1726667716210,27.8292,128.56,128.52,3.8902]
[1726667716410,3.8888,128.57,128.48,1.4713]
[1726667716615,16.95646361,128.58,128.49,23.94]
[1726667716811,14.42612334,128.58,128.5,3.0007]
[1726667717117,31.38590492,128.6,128.51,23.94]
[1726667717313,179.62,128.63,128.57,3.8885]
[1726667717517,31.39284811,128.62,128.57,3.8885]
[1726667717722,3.8878,128.6,128.57,3.8885]
[1726667718214,20.8497951,128.6,128.57,3.8885]
[1726667718409,183.54064208,128.63,128.55,1.4685]
[1726667718410,3.8876,128.61,128.55,1.4685]
[1726667718608,31.39608692,128.62,128.55,25.4085]
[1726667718821,31.39608692,128.61,128.56,1.5322]
[1726667719115,16.96407617,128.61,128.56,1.5322]
[1726667719313,3.887,128.63,128.6,3.8878]
[1726667720512,35.28161525,128.63,128.6,3.8878]
[1726667720822,3.887,128.63,128.6,3.8878]
[1726667721411,35.28425416,128.63,128.6,3.8878]
[1726667721610,3.887,128.63,128.6,3.8878]
[1726667722315,3.887,128.63,128.61,3.8875]
[1726667722316,31.39729093,128.63,128.61,3.8875]
[1726667722506,16.96409829,128.63,128.61,3.8875]
[1726667722912,3.8867,128.64,128.61,3.8875]
[1726667723409,18.32019441,128.65,128.62,3.8871]
[1726667723613,16.96409829,128.64,128.62,3.8871]
[1726667723811,16.96409829,128.67,128.62,3.8871]
[1726667724007,50.22874179,128.66,128.58,14.94]
[1726667724213,31.40254179,128.65,128.59,1.398]
[1726667724422,14.43554744,128.64,128.59,1.398]
[1726667724817,16.96699435,128.65,128.63,3.8868]
[1726667725016,3.8858,128.67,128.63,3.8868]
[1726667725216,18.86420823,128.68,128.63,3.8868]
[1726667725417,35.29077409,128.67,128.63,3.8868]
[1726667725618,31.40487409,128.66,128.63,3.8868]
[1726667725815,14.43662012,128.65,128.63,3.8868]
[1726667726016,14.43662012,128.66,128.63,3.8868]
[1726667726720,18.32262012,128.66,128.62,3.8871]
[1726667726925,16.96825397,128.65,128.62,3.8871]
[1726667727418,3.886,128.66,128.62,3.8871]
[1726667727914,20.85584336,128.66,128.62,3.8871]
[1726667728121,35.29432139,128.66,128.62,3.8871]
[1726667728438,31.40832139,128.65,128.61,3.8872]
[1726667728617,14.43847803,128.64,128.59,1.398]
[1726667728924,18.32527803,128.64,128.6,3.8878]
[1726667729224,16.96984336,128.63,128.6,3.8878]
[1726667729720,3.8868,128.64,128.6,3.8878]
[1726667729920,35.29041552,128.65,128.56,3.0057]
[1726667730222,31.40401552,128.64,128.56,3.0057]
[1726667730525,16.96763015,128.64,128.56,3.0057]
[1726667730714,3.8864,128.65,128.61,3.8872]
[1726667731324,35.3035781,128.65,128.61,3.8872]
[1726667731520,31.4171781,128.64,128.61,3.8872]
[1726667731728,20.86141952,128.64,128.62,3.8871]
[1726667731918,3.8866,128.64,128.62,3.8871]
[1726667732123,3.8864,128.65,128.62,3.8871]
[1726667732428,3.8864,128.65,128.63,3.8868]
[1726667732825,31.42076746,128.65,128.63,3.8868]
[1726667733323,16.97679109,128.65,128.63,3.8868]
[1726667733523,20.86309109,128.65,128.57,27.84762885]
[1726667733723,16.97679109,128.65,128.57,27.84762885]
[1726667734227,20.86309109,128.65,128.62,3.887]
[1726667734830,3.8863,128.65,128.62,3.887]
[1726667735629,3.8863,128.65,128.57,27.84762885]
[1726667735630,3.8861,128.66,128.63,3.8868]
[1726667735817,18.33013953,128.66,128.63,3.8868]
[1726667736222,14.44403953,128.66,128.62,23.9]
[1726667736426,14.44403953,128.66,128.63,4.3299]
[1726667737023,14.44403953,128.66,128.65,3.8863]
[1726667737423,16.97679109,128.67,128.63,4.3299]
[1726667737625,16.97679109,128.67,128.66,3.886]
[1726667737825,3.8846,128.71,128.63,4.3299]
[1726667738021,3.8846,128.71,128.64,23.9]
[1726667738428,35.33757104,128.72,128.64,23.9]
[1726667738721,23.9,128.75,128.7,3.8846]
[1726667738930,31.45613331,128.74,128.7,3.8846]
[1726667739124,16.99672383,128.74,128.7,3.8846]
[1726667739525,20.95098341,128.74,128.64,23.9]
[1726667740334,3.8845,128.71,128.64,23.9]
[1726667740929,3.8845,128.71,128.68,3.8851]
[1726667741331,3.8848,128.7,128.64,23.9]
[1726667741625,23.9,128.71,128.63,4.3299]
[1726667742033,23.9,128.69,128.64,3.8864]
[1726667742632,23.9,128.69,128.65,3.8862]
[1726667743127,27.7852,128.69,128.65,3.8862]
[1726667743324,3.8852,128.69,128.66,3.8859]
[1726667743526,23.9,128.73,128.63,1.4]
[1726667743726,3.8849,128.7,128.63,2.81]
[1726667743928,16.99722071,128.72,128.66,3.8858]
[1726667744129,23.9,128.73,128.66,3.8858]
[1726667744328,16.99671826,128.72,128.66,3.8858]
[1726667744734,3.885,128.7,128.66,3.8858]
[1726667745235,23.9,128.73,128.66,3.8858]
[1726667746234,3.885,128.7,128.63,2.81]
[1726667746743,3.8846,128.71,128.63,2.81]
[1726667747033,3.8846,128.71,128.64,1.428]
[1726667747542,3.8846,128.71,128.67,3.8854]
[1726667747728,3.8846,128.71,128.64,25.328]
[1726667747934,3.8843,128.72,128.65,14.92]
[1726667748136,14.92,128.73,128.65,14.92]
[1726667748336,3.95425958,128.74,128.67,14.92]
[1726667748639,3.884,128.73,128.69,3.8849]
[1726667749030,14.92,128.73,128.68,3.8853]
[1726667749237,14.92,128.72,128.64,16.348]
[1726667749742,3.8847,128.71,128.67,3.8855]
[1726667750335,3.8848,128.7,128.67,3.8855]
[1726667750642,18.76023024,128.72,128.67,3.8855]
[1726667750842,3.8847,128.71,128.67,3.8855]
[1726667751049,14.92,128.74,128.65,14.92]
[1726667751253,3.98545652,128.73,128.65,14.92]
[1726667751447,3.8843,128.72,128.65,14.92]
[1726667751750,3.98545652,128.73,128.69,3.8849]
[1726667751950,7.86955652,128.73,128.69,3.8849]
[1726667752150,3.98545652,128.73,128.69,3.8849]
[1726667752543,14.92,128.74,128.68,3.8853]
[1726667753246,14.92,128.72,128.67,3.8855]
[1726667753646,3.8846,128.71,128.67,3.8855]
[1726667754044,3.8846,128.71,128.68,3.8853]
[1726667754348,14.92,128.72,128.64,19.348]
[1726667754349,3.8848,128.7,128.64,19.348]
[1726667754743,14.92,128.72,128.68,3.8854]
[1726667755146,3.8846,128.71,128.68,3.8854]
[1726667756755,3.8848,128.7,128.67,3.8855]
[1726667757150,3.85557629,128.74,128.64,3.0]
[1726667757351,14.92,128.68,128.64,6.8864]
[1726667757552,18.76197071,128.68,128.64,6.8864]
[1726667757856,3.8859,128.67,128.64,6.8864]
[1726667759551,14.92,128.68,128.64,3.0]
[1726667759552,3.8861,128.66,128.64,3.0]
[1726667760053,16.4217,128.68,128.64,3.0]
[1726667760558,3.8861,128.66,128.64,3.0]
[1726667761259,1.5017,128.68,128.64,3.0]
[1726667761858,3.8859,128.67,128.64,3.0]
[1726667762046,1.5017,128.68,128.64,3.0]
[1726667762252,16.4217,128.68,128.64,3.0]
[1726667762554,1.5017,128.68,128.65,3.0]
[1726667762855,16.4217,128.68,128.65,3.0]
[1726667763652,3.8857,128.67,128.65,3.0]
[1726667764461,16.4217,128.68,128.65,3.0]
[1726667764658,3.8857,128.67,128.65,3.0]
[1726667764859,16.4217,128.68,128.65,3.0]
[1726667765464,3.886,128.66,128.65,3.0]
[1726667765849,16.4217,128.68,128.65,3.0]
[1726667766058,3.8858,128.67,128.65,3.0]
[1726667766256,16.4217,128.68,128.65,3.0]
[1726667766455,14.92,128.68,128.65,3.0]
[1726667766862,18.8056,128.68,128.65,3.0]
[1726667767254,14.92,128.68,128.65,3.0]
[1726667767955,3.886,128.66,128.65,3.0]
[1726667768658,3.886,128.66,128.6,16.3425]
[1726667768659,3.886,128.66,128.62,3.887]
[1726667768860,3.886,128.66,128.6,16.3425]
[1726667770660,3.886,128.66,128.61,3.8872]
[1726667770963,3.886,128.66,128.6,16.3425]
[1726667771369,3.8863,128.65,128.62,3.887]
[1726667771762,14.92,128.68,128.6,16.3425]
[1726667772260,3.8861,128.66,128.63,3.8868]
[1726667773266,3.8858,128.67,128.64,3.8865]
[1726667773461,18.77557956,128.69,128.6,1.4225]
[1726667773863,3.8865,128.65,128.6,1.4225]
[1726667774362,3.8865,128.65,128.6,4.4225]
[1726667774670,3.8865,128.65,128.62,3.887]
[1726667775370,3.8866,128.64,128.61,3.8873]
[1726667775661,3.8866,128.64,128.6,4.4225]
[1726667775662,14.92,128.67,128.6,4.4225]
[1726667776464,14.92,128.66,128.6,4.4225]
[1726667776666,3.887,128.63,128.6,8.3101]
[1726667778373,3.887,128.63,128.61,3.8874]
[1726667778561,3.887,128.63,128.6,4.4225]
[1726667779166,7.73366607,128.64,128.61,3.8873]
[1726667779467,3.8867,128.64,128.61,3.8873]
[1726667779670,3.8867,128.64,128.61,3.8874]
[1726667779870,3.92506652,128.65,128.6,4.4225]
[1726667779871,7.81156652,128.65,128.6,4.4225]
[1726667780367,3.92506652,128.65,128.6,4.4225]
[1726667780578,14.92,128.66,128.6,4.4225]
[1726667780972,18.79994187,128.66,128.6,4.4225]
[1726667781177,3.887,128.63,128.6,4.4225]
[1726667781376,14.92,128.65,128.6,3.0]
[1726667781875,18.72719782,128.65,128.6,3.0]
[1726667782472,3.8867,128.64,128.6,6.8877]
[1726667782677,3.8867,128.64,128.6,3.0]
[1726667783569,18.72719782,128.65,128.6,3.0]
[1726667783775,22.61359782,128.65,128.61,3.8873]
[1726667783975,18.72719782,128.65,128.61,3.8873]
[1726667784583,7.69359782,128.65,128.62,3.8871]
[1726667784977,3.80719782,128.65,128.6,3.0]
[1726667785180,3.8871,128.63,128.6,3.0]
[1726667786180,20.91314119,128.65,128.6,3.0]
[1726667786577,3.94248953,128.65,128.6,3.0]
[1726667786878,14.92,128.66,128.6,3.0]
[1726667787079,7.80632841,128.65,128.61,3.8872]
[1726667787281,3.91992841,128.65,128.61,3.8872]
[1726667787777,3.8868,128.64,128.6,6.8876]
[1726667787969,3.86934868,128.65,128.6,3.0]
[1726667788170,14.92,128.66,128.6,3.0]
[1726667788574,3.8871,128.63,128.6,3.0]
[1726667788975,18.85315695,128.63,128.6,3.0]
[1726667789284,3.8874,128.62,128.6,3.0]
[1726667789983,3.8138309,128.61,128.6,3.0]
[1726667791082,3.8869,128.63,128.6,3.0]
[1726667791479,3.81071789,128.62,128.6,3.0]
[1726667791678,3.81071789,128.62,128.6,6.8877]
[1726667791975,3.8872,128.62,128.6,3.0]
[1726667792177,3.85391095,128.61,128.6,3.0]
[1726667793987,14.92,128.63,128.6,3.0]
[1726667794179,3.8874,128.62,128.6,3.0]
[1726667794380,3.8235523,128.61,128.6,3.0]
[1726667796587,3.8875,128.61,128.6,3.0]
[1726667796782,7.79830819,128.61,128.6,3.0]
[1726667797184,3.91080819,128.61,128.6,3.0]
[1726667797877,13.48080819,128.61,128.6,3.0]
[1726667799782,17.36830819,128.61,128.6,3.0]
[1726667801493,13.48080819,128.61,128.6,3.0]
[1726667802188,13.48080819,128.61,128.55,1.4214]
[1726667802382,9.57,128.56,128.52,9.57]
[1726667802582,9.57,128.54,128.51,11.0622]
[1726667802979,9.57,128.54,128.51,5.3826]
[1726667803182,9.57,128.54,128.51,1.4922]
[1726667803689,1.4422,128.6,128.51,1.4922]
[1726667803690,9.57,128.53,128.51,1.4922]
[1726667803887,13.46,128.53,128.49,6.7973]
[1726667804093,9.57,128.51,128.47,11.0622]
[1726667804482,9.57,128.51,128.48,3.8912]
[1726667804682,3.86181697,128.52,128.48,9.57]
[1726667804887,9.57,128.53,128.48,9.57]
[1726667805083,3.9598998,128.52,128.48,9.57]
[1726667805485,9.57,128.53,128.48,9.57]
[1726667805691,9.57,128.53,128.5,3.8906]
[1726667805881,3.95560128,128.53,128.5,3.8906]
[1726667806695,3.95560128,128.53,128.51,3.8904]
[1726667806992,14.97,128.55,128.51,3.8904]
[1726667807392,22.66441542,128.55,128.51,3.8904]
[1726667807995,3.8896,128.54,128.5,3.8907]
[1726667808984,18.77491542,128.55,128.47,1.4922]
[1726667809496,22.66421542,128.55,128.51,3.8902]
[1726667809899,18.77491542,128.55,128.47,1.4922]
[1726667810091,18.77491542,128.55,128.52,3.8901]
[1726667810400,14.97,128.57,128.48,14.97]
[1726667810601,16.4122,128.6,128.5,14.97]
[1726667810602,3.87928348,128.56,128.5,14.97]
[1726667810793,14.97,128.58,128.5,14.97]
[1726667810991,3.8889,128.57,128.54,3.8896]
[1726667811192,3.86020249,128.56,128.54,3.8896]
[1726667811496,1.4422,128.6,128.52,16.3568]
[1726667811796,14.97,128.6,128.53,14.97]
[1726667812186,18.8579,128.6,128.53,14.97]
[1726667812590,18.8579,128.6,128.56,3.8888]
[1726667813188,3.8881,128.59,128.56,3.8888]
[1726667813691,3.94869998,128.58,128.55,3.8891]
[1726667815900,3.8884,128.58,128.54,3.8895]
[1726667816204,3.80888337,128.57,128.54,3.8895]
[1726667817099,3.80888337,128.57,128.55,3.8892]
[1726667817495,7.69758337,128.57,128.52,1.3868]
[1726667817801,14.97,128.59,128.52,1.3868]
[1726667818100,3.889,128.56,128.52,1.3868]
[1726667818302,7.83216344,128.56,128.52,1.3868]
[1726667818598,3.889,128.56,128.52,1.3868]
[1726667819195,14.97,128.57,128.52,1.3868]
[1726667819196,3.8895,128.55,128.52,1.3868]
[1726667819401,3.98239524,128.54,128.52,1.3868]
[1726667819602,3.98239524,128.54,128.52,5.2769]
[1726667819801,3.98239524,128.54,128.52,3.8901]
[1726667820202,3.8891,128.56,128.53,3.8898]